[Event "FIDE Women World Blitz 2021"]
[Site "Warsaw"]
[Date "2021.12.30"]
[Round "11.7"]
[White "Muzychuk, Mariya"]
[Black "Kiolbasa, Oliwia"]
[Result "0-1"]
[ECO "C47"]
[WhiteElo "2536"]
[BlackElo "2403"]
[Annotator "ChessBase"]
[PlyCount "50"]
[EventDate "2021.12.29"]
[EventType "swiss"]
[EventCountry "POL"]
[Tiebreak "Cut1 Buchholz"]
[SourceTitle "playchess.com"]
[Source "ChessBase"]
[SourceQuality "1"]
[TimeControl "180+2"]

1. e4 {[%emt 0:00:00]} e5 {[%emt 0:00:01]} 2. Nf3 {[%emt 0:00:01]} Nc6 {
[%emt 0:00:02]} 3. Nc3 {[%emt 0:00:01]} Nf6 {[%emt 0:00:03]} 4. d4 exd4 {
[%emt 0:00:03]} 5. Nxd4 {[%emt 0:00:01]} Bb4 {[%emt 0:00:04]} 6. Nxc6 {[%emt 0:
00:02]} bxc6 {[%emt 0:00:01]} 7. Bd3 {[%emt 0:00:00]} O-O {[%emt 0:00:09]} 8.
O-O {[%emt 0:00:02]} Re8 {[%emt 0:00:01]} 9. Re1 {[%emt 0:00:06]} d5 {[%emt 0:
00:40]} 10. Bd2 {[%emt 0:00:36]} Bg4 {[%emt 0:00:45]} 11. Qc1 {[%emt 0:00:35]}
dxe4 {[%emt 0:00:44]} 12. Nxe4 {[%emt 0:00:03]} Rxe4 {[%emt 0:00:11]} 13. Bxb4
{[%emt 0:01:23]} Rxb4 {[%emt 0:00:04]} 14. h3 {[%emt 0:00:00]} Be6 {[%emt 0:00:
02]} 15. b3 {[%emt 0:00:02]} Rd4 {[%emt 0:00:04]} 16. Qe3 {[%emt 0:00:02]} c5 {
[%emt 0:00:05]} 17. Rad1 {[%emt 0:00:01]} Qd6 {[%emt 0:00:06]} 18. c3 {[%emt 0:
00:01]} Rd5 {[%emt 0:00:02]} 19. Rd2 {[%emt 0:00:11]} Rd8 {[%emt 0:00:04]} 20.
Red1 Bf5 {[%emt 0:00:09]} 21. c4 {[%emt 0:00:27]} Rxd3 {[%emt 0:00:01]} 22.
Rxd3 {[%emt 0:00:01]} Bxd3 {[%emt 0:00:02]} 23. g4 {[%emt 0:00:03]} Qd4 {
[%emt 0:00:03]} 24. Qg3 {[%emt 0:00:02]} Ne4 {[%emt 0:00:07]} 25. Qf4 {[%emt 0:
00:00]} Nc3 {[%emt 0:00:06]} 0-1

[Event "FIDE Women World Blitz 2021"]
[Site "Warsaw"]
[Date "2021.12.30"]
[Round "11.7"]
[White "Kolaric, Spela"]
[Black "Beydullayeva, Govhar"]
[Result "0-1"]
[ECO "B22"]
[WhiteElo "2178"]
[BlackElo "2278"]
[Annotator "NA"]
[PlyCount "112"]
[EventDate "2021.12.29"]
[EventType "swiss"]
[EventCountry "POL"]
[Tiebreak "Cut1 Buchholz"]
[SourceTitle "playchess.com"]
[Source "ChessBase"]
[SourceQuality "1"]
[TimeControl "180+2"]

1. e4 {[%emt 0:00:01]} c5 {[%emt 0:00:00]} 2. c3 {[%emt 0:00:01]} d5 {[%emt 0:
00:05]} 3. exd5 {[%emt 0:00:02]} Qxd5 {[%emt 0:00:01]} 4. d4 {[%emt 0:00:01]}
Nf6 {[%emt 0:00:04]} 5. Nf3 {[%emt 0:00:02]} e6 {[%emt 0:00:02]} 6. Na3 {
[%emt 0:00:10]} a6 {[%emt 0:00:38]} 7. Nc4 {[%emt 0:00:16]} Nbd7 {[%emt 0:00:
04]} 8. Be3 {[%emt 0:00:05]} b5 {[%emt 0:00:24]} 9. Nce5 {[%emt 0:00:08]} Nxe5
{[%emt 0:00:14]} 10. dxe5 {[%emt 0:00:02]} Qxd1+ {[%emt 0:00:04]} 11. Rxd1 {
[%emt 0:00:02]} Nd5 {[%emt 0:00:03]} 12. Bg5 {[%emt 0:00:16]} h6 {[%emt 0:00:
03]} 13. Bh4 {[%emt 0:00:01]} Bb7 {[%emt 0:00:06]} 14. Bg3 {[%emt 0:00:25]} Be7
{[%emt 0:00:08]} 15. Be2 {[%emt 0:00:03]} O-O {[%emt 0:00:03]} 16. O-O {
[%emt 0:00:01]} Rfd8 {[%emt 0:00:05]} 17. Rd2 {[%emt 0:00:09]} g5 {[%emt 0:00:
08]} 18. h3 {[%emt 0:00:04]} Nb6 {[%emt 0:00:11]} 19. Rfd1 {[%emt 0:00:05]} Na4
{[%emt 0:00:09]} 20. Kf1 {[%emt 0:00:44]} Rxd2 {[%emt 0:00:04]} 21. Rxd2 {
[%emt 0:00:00]} Rd8 {[%emt 0:00:01]} 22. Rxd8+ {[%emt 0:00:46]} Bxd8 {[%emt 0:
00:01]} 23. h4 Nxb2 {[%emt 0:00:06]} 24. hxg5 {[%emt 0:00:01]} hxg5 {[%emt 0:
00:01]} 25. Nd2 {[%emt 0:00:11]} Ba5 {[%emt 0:00:08]} 26. Nb3 {[%emt 0:00:06]}
Bb6 {[%emt 0:00:13]} 27. f4 {[%emt 0:00:01]} c4 {[%emt 0:00:05]} 28. Nd2 {
[%emt 0:00:10]} gxf4 {[%emt 0:00:04]} 29. Bxf4 {[%emt 0:00:00]} Na4 {[%emt 0:
00:08]} 30. Nb1 {[%emt 0:00:00]} Be4 {[%emt 0:00:04]} 31. Nd2 Nxc3 {[%emt 0:00:
05]} 32. Nxe4 {[%emt 0:00:01]} Nxe4 {[%emt 0:00:01]} 33. Bf3 {[%emt 0:00:01]}
Nc3 {[%emt 0:00:04]} 34. Bb7 {[%emt 0:00:01]} Nxa2 {[%emt 0:00:15]} 35. Bxa6 {
[%emt 0:00:01]} c3 {[%emt 0:00:15]} 36. Bxb5 {[%emt 0:00:02]} c2 {[%emt 0:00:
01]} 37. Bc4 {[%emt 0:00:05]} c1=Q+ {[%emt 0:00:01]} 38. Bxc1 {[%emt 0:00:00]}
Nxc1 {[%emt 0:00:01]} 39. Ke1 {[%emt 0:00:08]} Be3 {[%emt 0:00:03]} 40. g4 {
[%emt 0:00:04]} Kg7 {[%emt 0:00:00]} 41. Kf1 {[%emt 0:00:01]} Bf4 {[%emt 0:00:
02]} 42. Kg2 {[%emt 0:00:01]} Bxe5 {[%emt 0:00:01]} 43. Kf3 Kg6 {[%emt 0:00:04]
} 44. Ke4 {[%emt 0:00:00]} Bg7 {[%emt 0:00:02]} 45. Ke3 {[%emt 0:00:04]} Bh6+ {
[%emt 0:00:03]} 46. Ke4 {[%emt 0:00:00]} Kg5 {[%emt 0:00:00]} 47. Kf3 {[%emt 0:
00:01]} Kh4 {[%emt 0:00:02]} 48. Ba6 {[%emt 0:00:10]} Nb3 {[%emt 0:00:01]} 49.
Bc4 {[%emt 0:00:02]} Nd2+ {[%emt 0:00:02]} 50. Ke2 {[%emt 0:00:00]} Nxc4 {
[%emt 0:00:02]} 51. Kd3 {[%emt 0:00:00]} Nd6 {[%emt 0:00:00]} 52. Kd4 {[%emt 0:
00:01]} Kxg4 {[%emt 0:00:02]} 53. Ke5 Bf4+ {[%emt 0:00:03]} 54. Kd4 {[%emt 0:
00:01]} e5+ {[%emt 0:00:01]} 55. Kd5 {[%emt 0:00:00]} e4 {[%emt 0:00:01]} 56.
Kd4 {[%emt 0:00:01]} e3 {[%emt 0:00:01]} 0-1

[Event "FIDE Women World Blitz 2021"]
[Site "Warsaw"]
[Date "2021.12.30"]
[Round "11.8"]
[White "Maltsevskaya, Aleksandra"]
[Black "Muzychuk, Anna"]
[Result "0-1"]
[ECO "C77"]
[WhiteElo "2411"]
[BlackElo "2533"]
[Annotator "ChessBase"]
[PlyCount "74"]
[EventDate "2021.12.29"]
[EventType "swiss"]
[EventCountry "POL"]
[Tiebreak "Cut1 Buchholz"]
[SourceTitle "playchess.com"]
[Source "ChessBase"]
[SourceQuality "1"]
[TimeControl "180+2"]

1. e4 {[%emt 0:00:02]} e5 {[%emt 0:00:00]} 2. Nf3 Nc6 3. Bb5 {[%emt 0:00:03]}
a6 {[%emt 0:00:01]} 4. Ba4 {[%emt 0:00:01]} Nf6 {[%emt 0:00:01]} 5. Nc3 {
[%emt 0:00:01]} b5 {[%emt 0:00:21]} 6. Bb3 {[%emt 0:00:01]} Bc5 {[%emt 0:00:07]
} 7. d3 {[%emt 0:00:12]} h6 {[%emt 0:00:05]} 8. Bd2 {[%emt 0:00:09]} d6 {
[%emt 0:00:07]} 9. a4 {[%emt 0:00:01]} Bg4 {[%emt 0:00:38]} 10. axb5 {[%emt 0:
01:13]} Nd4 {[%emt 0:00:01]} 11. h3 {[%emt 0:00:01]} Bxf3 {[%emt 0:00:06]} 12.
gxf3 {[%emt 0:00:02]} axb5 {[%emt 0:00:14]} 13. Rxa8 {[%emt 0:00:22]} Qxa8 {
[%emt 0:00:01]} 14. Be3 {[%emt 0:00:23]} c6 {[%emt 0:00:25]} 15. Bxd4 {[%emt 0:
00:21]} Bxd4 {[%emt 0:00:02]} 16. O-O {[%emt 0:00:03]} Nh5 {[%emt 0:00:13]} 17.
Ne2 {[%emt 0:00:04]} Qd8 {[%emt 0:00:02]} 18. c3 {[%emt 0:00:19]} Bb6 {[%emt 0:
00:26]} 19. Kh2 {[%emt 0:00:14]} Qf6 {[%emt 0:00:04]} 20. f4 {[%emt 0:00:05]}
Nxf4 {[%emt 0:00:08]} 21. Nxf4 {[%emt 0:00:02]} Qxf4+ {[%emt 0:00:01]} 22. Kg2
{[%emt 0:00:01]} O-O {[%emt 0:00:11]} 23. Qg4 {[%emt 0:00:02]} Qd2 {[%emt 0:00:
08]} 24. Qd7 {[%emt 0:00:03]} Qxd3 {[%emt 0:00:03]} 25. Qxc6 {[%emt 0:00:02]}
Bc5 {[%emt 0:00:02]} 26. Qd5 {[%emt 0:00:02]} Qe2 {[%emt 0:00:06]} 27. Qd1 {
[%emt 0:00:04]} Qxe4+ {[%emt 0:00:02]} 28. Qf3 {[%emt 0:00:01]} Qxf3+ {[%emt 0:
00:06]} 29. Kxf3 {[%emt 0:00:01]} Ra8 {[%emt 0:00:03]} 30. Ke4 {[%emt 0:00:02]}
Kf8 {[%emt 0:00:01]} 31. f4 {[%emt 0:00:01]} exf4 {[%emt 0:00:08]} 32. Rxf4 {
[%emt 0:00:01]} f6 {[%emt 0:00:01]} 33. Kd5 {[%emt 0:00:03]} Re8 {[%emt 0:00:
02]} 34. Rf1 {[%emt 0:00:04]} Re2 {[%emt 0:00:03]} 35. Ra1 {[%emt 0:00:01]}
Rxb2 {[%emt 0:00:04]} 36. Bd1 {[%emt 0:00:03]} Kf7 {[%emt 0:00:03]} 37. Bh5+ {
[%emt 0:00:01]} g6 {[%emt 0:00:06]} 0-1

[Event "FIDE Women World Blitz 2021"]
[Site "Warsaw"]
[Date "2021.12.30"]
[Round "11.8"]
[White "Jakubowska, Anna"]
[Black "Budkiewicz, Magdalena"]
[Result "1/2-1/2"]
[ECO "B24"]
[WhiteElo "2106"]
[BlackElo "1624"]
[Annotator "NA"]
[PlyCount "94"]
[EventDate "2021.12.29"]
[EventType "swiss"]
[EventCountry "POL"]
[Tiebreak "Cut1 Buchholz"]
[SourceTitle "playchess.com"]
[Source "ChessBase"]
[SourceQuality "1"]
[TimeControl "180+2"]

1. e4 {[%emt 0:00:01]} c5 {[%emt 0:00:00]} 2. Nc3 {[%emt 0:00:01]} d6 {[%emt 0:
00:01]} 3. g3 {[%emt 0:00:00]} Nf6 {[%emt 0:00:01]} 4. Bg2 {[%emt 0:00:01]} e6
{[%emt 0:00:01]} 5. d3 {[%emt 0:00:03]} Be7 {[%emt 0:00:02]} 6. f4 {[%emt 0:00:
02]} Nc6 {[%emt 0:00:04]} 7. Nf3 {[%emt 0:00:01]} O-O {[%emt 0:00:02]} 8. O-O {
[%emt 0:00:02]} Rb8 {[%emt 0:00:10]} 9. d4 {[%emt 0:00:02]} cxd4 {[%emt 0:00:
06]} 10. Nxd4 {[%emt 0:00:02]} Bd7 {[%emt 0:00:04]} 11. Be3 {[%emt 0:00:03]} a6
{[%emt 0:00:10]} 12. g4 {[%emt 0:00:04]} Nxd4 {[%emt 0:00:08]} 13. Bxd4 {
[%emt 0:00:01]} Bc6 {[%emt 0:00:00]} 14. g5 {[%emt 0:00:02]} Nd7 {[%emt 0:00:
02]} 15. a4 {[%emt 0:00:13]} Nc5 {[%emt 0:00:07]} 16. Qe2 {[%emt 0:00:07]} Qd7
{[%emt 0:00:07]} 17. b3 {[%emt 0:00:30]} Qc7 {[%emt 0:00:02]} 18. b4 {[%emt 0:
00:08]} Nd7 {[%emt 0:00:07]} 19. b5 {[%emt 0:00:01]} e5 {[%emt 0:00:15]} 20.
fxe5 dxe5 {[%emt 0:00:02]} 21. Be3 {[%emt 0:00:17]} Bxb5 {[%emt 0:00:01]} 22.
axb5 {[%emt 0:00:27]} Qxc3 {[%emt 0:00:01]} 23. bxa6 {[%emt 0:00:07]} bxa6 {
[%emt 0:00:04]} 24. Rxa6 {[%emt 0:00:15]} Rb2 {[%emt 0:00:23]} 25. Ra7 {
[%emt 0:00:20]} Rxc2 {[%emt 0:00:22]} 26. Qe1 {[%emt 0:00:01]} Qxe3+ {[%emt 0:
00:03]} 27. Qxe3 {[%emt 0:00:04]} Bc5 {[%emt 0:00:00]} 28. Qxc5 {[%emt 0:00:05]
} Nxc5 {[%emt 0:00:01]} 29. Rc7 {[%emt 0:00:05]} Rc3 {[%emt 0:00:06]} 30. Ra7 {
[%emt 0:00:08]} Nd3 {[%emt 0:00:10]} 31. Rf3 {[%emt 0:00:10]} Rc1+ {[%emt 0:00:
02]} 32. Bf1 {[%emt 0:00:02]} Nf4 {[%emt 0:00:01]} 33. Re7 {[%emt 0:00:05]} Ng6
{[%emt 0:00:19]} 34. Ra7 {[%emt 0:00:01]} Re1 {[%emt 0:00:03]} 35. Ra4 {
[%emt 0:00:03]} Rc8 {[%emt 0:00:03]} 36. Ra7 {[%emt 0:00:04]} Rf8 {[%emt 0:00:
01]} 37. Ra4 {[%emt 0:00:00]} h6 {[%emt 0:00:01]} 38. gxh6 {[%emt 0:00:02]}
gxh6 {[%emt 0:00:01]} 39. Kf2 {[%emt 0:00:02]} Rb1 {[%emt 0:00:03]} 40. Bc4 {
[%emt 0:00:03]} Rb2+ {[%emt 0:00:07]} 41. Kg3 {[%emt 0:00:02]} Nf4 {[%emt 0:00:
03]} 42. Ra5 {[%emt 0:00:02]} Re8 {[%emt 0:00:04]} 43. Ra7 {[%emt 0:00:03]} Rf8
{[%emt 0:00:01]} 44. Ra5 {[%emt 0:00:01]} Re8 {[%emt 0:00:11]} 45. Ra7 {
[%emt 0:00:00]} Rf8 {[%emt 0:00:10]} 46. Ra5 {[%emt 0:00:02]} Re8 {[%emt 0:00:
05]} 47. Ra7 {[%emt 0:00:00]} Rf8 {[%emt 0:00:01]} 1/2-1/2

[Event "FIDE Women World Blitz 2021"]
[Site "Warsaw"]
[Date "2021.12.30"]
[Round "11.9"]
[White "Babiy, Olga"]
[Black "Paehtz, Elisabeth"]
[Result "1-0"]
[ECO "B07"]
[WhiteElo "2179"]
[BlackElo "2485"]
[Annotator "ChessBase"]
[PlyCount "107"]
[EventDate "2021.12.29"]
[EventType "swiss"]
[EventCountry "POL"]
[Tiebreak "Cut1 Buchholz"]
[SourceTitle "playchess.com"]
[Source "ChessBase"]
[SourceQuality "1"]
[TimeControl "180+2"]

1. d4 {[%emt 0:00:01]} Nf6 {[%emt 0:00:01]} 2. Nf3 {[%emt 0:00:01]} g6 {
[%emt 0:00:01]} 3. Nbd2 {[%emt 0:00:01]} Bg7 {[%emt 0:00:01]} 4. e4 {[%emt 0:
00:01]} d6 {[%emt 0:00:02]} 5. Bb5+ {[%emt 0:00:01]} c6 {[%emt 0:00:02]} 6. Bd3
{[%emt 0:00:01]} O-O {[%emt 0:00:05]} 7. O-O {[%emt 0:00:02]} Qc7 {[%emt 0:00:
03]} 8. c3 {[%emt 0:00:02]} e5 {[%emt 0:00:06]} 9. h3 {[%emt 0:00:07]} Nh5 {
[%emt 0:00:06]} 10. dxe5 {[%emt 0:00:08]} dxe5 {[%emt 0:00:01]} 11. Nc4 {
[%emt 0:00:01]} b5 {[%emt 0:00:08]} 12. Ne3 {[%emt 0:00:14]} Nf4 {[%emt 0:00:
01]} 13. Nc2 {[%emt 0:00:06]} Nd7 {[%emt 0:00:13]} 14. Bxf4 {[%emt 0:00:07]}
exf4 {[%emt 0:00:01]} 15. Ncd4 {[%emt 0:00:14]} Nc5 {[%emt 0:00:07]} 16. Bc2 {
[%emt 0:00:01]} Rb8 {[%emt 0:00:15]} 17. a3 {[%emt 0:00:03]} Ne6 {[%emt 0:00:
03]} 18. Qe2 {[%emt 0:00:13]} h6 {[%emt 0:00:04]} 19. e5 {[%emt 0:00:10]} Nxd4
{[%emt 0:00:09]} 20. cxd4 {[%emt 0:00:01]} Be6 {[%emt 0:00:02]} 21. Nd2 {
[%emt 0:00:08]} Qd7 {[%emt 0:00:05]} 22. Nf3 {[%emt 0:00:11]} a5 {[%emt 0:00:
15]} 23. Rfd1 {[%emt 0:00:02]} a4 {[%emt 0:00:04]} 24. Rac1 {[%emt 0:00:04]}
Bd5 {[%emt 0:00:02]} 25. Be4 {[%emt 0:00:02]} Bc4 {[%emt 0:00:17]} 26. Bd3 {
[%emt 0:00:01]} Be6 {[%emt 0:00:01]} 27. Be4 {[%emt 0:00:02]} Rfc8 {[%emt 0:00:
02]} 28. Qd2 {[%emt 0:00:15]} g5 {[%emt 0:00:02]} 29. Rc3 {[%emt 0:00:03]} Bd5
{[%emt 0:00:09]} 30. Bxd5 {[%emt 0:00:08]} Qxd5 {[%emt 0:00:02]} 31. Rc5 {
[%emt 0:00:05]} Qe6 {[%emt 0:00:02]} 32. Rdc1 {[%emt 0:00:05]} Bf8 {[%emt 0:00:
01]} 33. R5c2 {[%emt 0:00:11]} b4 {[%emt 0:00:04]} 34. axb4 {[%emt 0:00:03]}
Qd5 {[%emt 0:00:07]} 35. Qd3 {[%emt 0:00:10]} Rxb4 {[%emt 0:00:04]} 36. Qf5 {
[%emt 0:00:02]} Rbb8 {[%emt 0:00:21]} 37. h4 {[%emt 0:00:02]} gxh4 {[%emt 0:00:
17]} 38. Qxf4 {[%emt 0:00:01]} Be7 {[%emt 0:00:07]} 39. Qxh6 {[%emt 0:00:07]}
Qe6 {[%emt 0:00:01]} 40. Qf4 {[%emt 0:00:10]} Rb4 {[%emt 0:00:13]} 41. Nxh4 {
[%emt 0:00:05]} Bxh4 42. Qxh4 {[%emt 0:00:01]} Rbb8 {[%emt 0:00:26]} 43. Qg5+ {
[%emt 0:00:20]} Kf8 {[%emt 0:00:02]} 44. Qf4 {[%emt 0:00:08]} Ke8 {[%emt 0:00:
02]} 45. Qe4 {[%emt 0:00:03]} Kd7 {[%emt 0:00:03]} 46. Qe3 {[%emt 0:00:03]} Rb5
{[%emt 0:00:02]} 47. Qa3 {[%emt 0:00:04]} Rg8 {[%emt 0:00:07]} 48. Rxc6 {
[%emt 0:00:12]} Qxc6 {[%emt 0:00:05]} 49. Rxc6 {[%emt 0:00:00]} Kxc6 {[%emt 0:
00:00]} 50. Qd6+ {[%emt 0:00:04]} Kb7 {[%emt 0:00:01]} 51. Qd7+ {[%emt 0:00:03]
} Ka6 {[%emt 0:00:01]} 52. Qxf7 {[%emt 0:00:03]} Rc8 {[%emt 0:00:01]} 53. Qe6+
{[%emt 0:00:02]} Kb7 {[%emt 0:00:00]} 54. Qd7+ {[%emt 0:00:00]} 1-0

[Event "FIDE Women World Blitz 2021"]
[Site "Warsaw"]
[Date "2021.12.30"]
[Round "11.9"]
[White "Goraj, Barbara"]
[Black "Zabrzanska, Weronika"]
[Result "1-0"]
[ECO "A14"]
[WhiteElo "1902"]
[BlackElo "1596"]
[Annotator "NA"]
[PlyCount "80"]
[EventDate "2021.12.29"]
[EventType "swiss"]
[EventCountry "POL"]
[Tiebreak "Cut1 Buchholz"]
[SourceTitle "playchess.com"]
[Source "ChessBase"]
[SourceQuality "1"]
[TimeControl "180+2"]

1. c4 {[%emt 0:00:01]} e6 {[%emt 0:00:01]} 2. Nf3 {[%emt 0:00:04]} d5 {[%emt 0:
00:01]} 3. g3 {[%emt 0:00:02]} Nf6 {[%emt 0:00:02]} 4. Bg2 {[%emt 0:00:02]} Be7
{[%emt 0:00:01]} 5. O-O {[%emt 0:00:02]} O-O {[%emt 0:00:02]} 6. b3 {[%emt 0:
00:01]} c5 {[%emt 0:00:05]} 7. Bb2 {[%emt 0:00:01]} Nc6 {[%emt 0:00:02]} 8. e3
{[%emt 0:00:01]} Rb8 {[%emt 0:00:04]} 9. Nc3 {[%emt 0:00:03]} b6 {[%emt 0:00:
03]} 10. cxd5 {[%emt 0:00:04]} Nxd5 {[%emt 0:00:08]} 11. Nxd5 {[%emt 0:00:19]}
exd5 {[%emt 0:00:03]} 12. d4 {[%emt 0:00:07]} Qd6 {[%emt 0:00:19]} 13. Qe2 {
[%emt 0:00:08]} Bg4 {[%emt 0:00:11]} 14. h3 {[%emt 0:00:11]} Bh5 {[%emt 0:00:
02]} 15. Qd2 {[%emt 0:00:31]} Rfd8 {[%emt 0:00:15]} 16. Rac1 {[%emt 0:00:01]}
Rbc8 {[%emt 0:00:03]} 17. Ba3 {[%emt 0:00:07]} Bxf3 {[%emt 0:00:20]} 18. Bxf3 {
[%emt 0:00:08]} Qf6 {[%emt 0:00:05]} 19. Bg4 {[%emt 0:00:24]} Ra8 {[%emt 0:00:
39]} 20. dxc5 {[%emt 0:00:02]} Ne5 {[%emt 0:00:11]} 21. Qd4 {[%emt 0:00:36]} g6
{[%emt 0:00:37]} 22. Be2 {[%emt 0:00:08]} Qe6 {[%emt 0:00:07]} 23. Kh2 {
[%emt 0:00:11]} Rac8 {[%emt 0:00:05]} 24. b4 {[%emt 0:00:14]} a5 {[%emt 0:00:
08]} 25. cxb6 {[%emt 0:00:03]} axb4 {[%emt 0:00:08]} 26. Bb2 {[%emt 0:00:07]}
Bf6 {[%emt 0:00:04]} 27. Qxb4 {[%emt 0:00:01]} Rb8 {[%emt 0:00:03]} 28. Bd4 {
[%emt 0:00:02]} Nc6 {[%emt 0:00:02]} 29. Rxc6 {[%emt 0:00:13]} Qxc6 {[%emt 0:
00:02]} 30. Rb1 {[%emt 0:00:02]} Qd6 {[%emt 0:00:02]} 31. Qb2 {[%emt 0:00:02]}
Bxd4 {[%emt 0:00:02]} 32. Qxd4 {[%emt 0:00:01]} Rd7 {[%emt 0:00:03]} 33. a4 {
[%emt 0:00:02]} Rdb7 {[%emt 0:00:04]} 34. a5 {[%emt 0:00:00]} Kf8 {[%emt 0:00:
03]} 35. Ba6 {[%emt 0:00:01]} Qa3 {[%emt 0:00:02]} 36. Bxb7 {[%emt 0:00:03]}
Rxb7 {[%emt 0:00:00]} 37. Qh8+ {[%emt 0:00:02]} Ke7 38. Qc8 {[%emt 0:00:01]}
Rd7 {[%emt 0:00:06]} 39. b7 {[%emt 0:00:02]} Qa2 {[%emt 0:00:01]} 40. Rf1 {
[%emt 0:00:02]} Qe2 {[%emt 0:00:01]} 1-0

[Event "FIDE Women World Blitz 2021"]
[Site "Warsaw"]
[Date "2021.12.30"]
[Round "11.10"]
[White "Kamalidenova, Meruert"]
[Black "Injac, Teodora"]
[Result "0-1"]
[ECO "C88"]
[WhiteElo "2339"]
[BlackElo "2387"]
[Annotator "NA"]
[PlyCount "74"]
[EventDate "2021.12.29"]
[EventType "swiss"]
[EventCountry "POL"]
[Tiebreak "Cut1 Buchholz"]
[SourceTitle "playchess.com"]
[Source "ChessBase"]
[SourceQuality "1"]
[TimeControl "180+2"]

1. e4 {[%emt 0:00:01]} e5 {[%emt 0:00:01]} 2. Nf3 {[%emt 0:00:01]} Nc6 {
[%emt 0:00:01]} 3. Bb5 {[%emt 0:00:01]} a6 {[%emt 0:00:03]} 4. Ba4 {[%emt 0:00:
01]} Nf6 {[%emt 0:00:01]} 5. O-O {[%emt 0:00:02]} Be7 {[%emt 0:00:01]} 6. Re1 {
[%emt 0:00:02]} b5 {[%emt 0:00:01]} 7. Bb3 {[%emt 0:00:01]} O-O {[%emt 0:00:06]
} 8. a4 {[%emt 0:00:05]} Bb7 {[%emt 0:00:01]} 9. d3 {[%emt 0:00:10]} d6 {
[%emt 0:00:01]} 10. Bd2 {[%emt 0:00:06]} Qd7 {[%emt 0:00:25]} 11. Nc3 {[%emt 0:
00:07]} Na5 {[%emt 0:00:13]} 12. Ba2 {[%emt 0:00:03]} b4 {[%emt 0:00:02]} 13.
Ne2 {[%emt 0:00:02]} c5 {[%emt 0:00:06]} 14. Ng3 {[%emt 0:00:04]} h6 {[%emt 0:
00:32]} 15. Nf5 {[%emt 0:00:08]} Rfc8 {[%emt 0:00:24]} 16. Bxh6 {[%emt 0:00:12]
} gxh6 {[%emt 0:00:38]} 17. Nxh6+ {[%emt 0:00:04]} Kg7 {[%emt 0:00:05]} 18. Qd2
{[%emt 0:00:11]} Nh7 {[%emt 0:00:19]} 19. Nxf7 {[%emt 0:00:13]} b3 {[%emt 0:00:
08]} 20. Qh6+ {[%emt 0:00:07]} Kxf7 {[%emt 0:00:03]} 21. Qxh7+ {[%emt 0:00:00]}
Ke8 {[%emt 0:00:00]} 22. cxb3 {[%emt 0:00:00]} Nc6 {[%emt 0:00:09]} 23. b4 {
[%emt 0:00:00]} Nxb4 {[%emt 0:00:01]} 24. Qg6+ {[%emt 0:00:00]} Kd8 {[%emt 0:
00:06]} 25. Be6 {[%emt 0:00:00]} Qe8 {[%emt 0:00:02]} 26. Bf7 {[%emt 0:00:00]}
Qh8 {[%emt 0:00:05]} 27. Red1 {[%emt 0:00:02]} Kc7 {[%emt 0:00:02]} 28. Qe6 {
[%emt 0:00:08]} Qf6 {[%emt 0:00:01]} 29. Qb3 {[%emt 0:00:06]} Rf8 {[%emt 0:00:
02]} 30. Be6 {[%emt 0:00:03]} Qg7 {[%emt 0:00:08]} 31. Kh1 {[%emt 0:00:18]} Rf4
{[%emt 0:00:01]} 32. Rac1 {[%emt 0:00:05]} Rh8 {[%emt 0:00:04]} 33. Qxb4 {
[%emt 0:00:11]} Rxf3 {[%emt 0:00:01]} 34. gxf3 {[%emt 0:00:14]} Qh6 {[%emt 0:
00:00]} 35. h3 {[%emt 0:00:03]} Qxe6 {[%emt 0:00:01]} 36. h4 {[%emt 0:00:46]}
Qh3+ {[%emt 0:00:02]} 37. Kg1 {[%emt 0:00:01]} Rg8# {[%emt 0:00:01]} 0-1

[Event "FIDE Women World Blitz 2021"]
[Site "Warsaw"]
[Date "2021.12.30"]
[Round "11.10"]
[White "Zairbek kyzy, Begimai"]
[Black "Rudzinska, Michalina"]
[Result "0-1"]
[ECO "B21"]
[WhiteElo "1701"]
[BlackElo "1832"]
[Annotator "NA"]
[PlyCount "66"]
[EventDate "2021.12.29"]
[EventType "swiss"]
[EventCountry "POL"]
[Tiebreak "Cut1 Buchholz"]
[SourceTitle "playchess.com"]
[Source "ChessBase"]
[SourceQuality "1"]
[TimeControl "180+2"]

1. e4 {[%emt 0:00:01]} c5 {[%emt 0:00:01]} 2. d4 {[%emt 0:00:01]} cxd4 {
[%emt 0:00:01]} 3. c3 {[%emt 0:00:00]} d3 {[%emt 0:00:01]} 4. Bxd3 {[%emt 0:00:
02]} d6 {[%emt 0:00:04]} 5. c4 {[%emt 0:00:01]} Nf6 {[%emt 0:00:02]} 6. Nc3 {
[%emt 0:00:00]} a6 {[%emt 0:00:02]} 7. h3 {[%emt 0:00:03]} Nc6 {[%emt 0:00:03]}
8. Nf3 {[%emt 0:00:01]} e6 {[%emt 0:00:04]} 9. O-O {[%emt 0:00:01]} Be7 {
[%emt 0:00:02]} 10. Be3 {[%emt 0:00:01]} O-O {[%emt 0:00:02]} 11. Qe2 {[%emt 0:
00:01]} Ne5 {[%emt 0:00:02]} 12. Rac1 {[%emt 0:00:24]} Qc7 {[%emt 0:00:03]} 13.
Na4 {[%emt 0:00:29]} Nfd7 {[%emt 0:00:09]} 14. Bb1 {[%emt 0:00:15]} Qc6 {
[%emt 0:00:12]} 15. b3 {[%emt 0:00:15]} Nxf3+ {[%emt 0:00:31]} 16. Qxf3 {
[%emt 0:00:01]} Nc5 {[%emt 0:00:09]} 17. Nc3 {[%emt 0:00:23]} Bf6 {[%emt 0:00:
11]} 18. b4 {[%emt 0:00:16]} Nd7 {[%emt 0:00:02]} 19. Qe2 {[%emt 0:00:07]} Ne5
{[%emt 0:00:11]} 20. c5 {[%emt 0:00:03]} dxc5 {[%emt 0:00:10]} 21. Bxc5 {
[%emt 0:00:00]} Rd8 {[%emt 0:00:03]} 22. f4 {[%emt 0:00:03]} Nd7 {[%emt 0:00:
07]} 23. e5 {[%emt 0:00:05]} Nxc5 {[%emt 0:00:10]} 24. bxc5 {[%emt 0:00:01]}
Qxc5+ {[%emt 0:00:07]} 25. Kh1 Be7 {[%emt 0:00:04]} 26. Ne4 {[%emt 0:00:01]}
Qb5 {[%emt 0:00:15]} 27. Qh5 {[%emt 0:00:08]} g6 {[%emt 0:00:08]} 28. Qg4 {
[%emt 0:00:03]} Bd7 {[%emt 0:00:11]} 29. h4 {[%emt 0:00:06]} Bc6 {[%emt 0:00:
03]} 30. Ng5 {[%emt 0:00:05]} Rd2 {[%emt 0:00:09]} 31. Ne4 {[%emt 0:00:23]} Rb2
{[%emt 0:00:09]} 32. h5 {[%emt 0:00:02]} Qe2 {[%emt 0:00:08]} 33. Nc3 {[%emt 0:
00:04]} Qxg4 {[%emt 0:00:03]} 0-1